Cogmind - Beta 16 @@@ ROGUE MODE // 2025.12.01 @ 04:40:51 Player: shapeshifter Result: Destroyed by A4-PTL(R) with Subdweller Shrapnel Launcher Performance ------------- Evolutions (0) 0 Regions Visited (3) 600 Robots Destroyed (12) 60 Value Destroyed (278) 278 Prototype IDs (0) 0 Alien Tech Used (0) 0 Bonus (0) 0 TOTAL SCORE: 938 Bonus ------- None Cogmind --------- Core Integrity 0/250 Matter 255/300 Energy 234/250 System Corruption 0% Temperature Cool (0) Movement Walking (120) Location -10/Subcaves Parts ------- > --- POWER (1) -------- Ion Engine > --- PROPULSION (2) --- Aluminum Leg Aluminum Leg > --- UTILITY (2) ------ Small Storage Unit Seismic Detector > --- WEAPON (2) ------- Small Laser Small Laser > --- INVENTORY (8) ---- Light Treads Light Treads Improved Terrain Scanner Medium Laser Medium Laser Assault Rifle Grenade Launcher Peak State ------------ > --- POWER ------------ Ion Engine > --- PROPULSION ------- Aluminum Leg Aluminum Leg > --- UTILITY ---------- Small Storage Unit Seismic Detector > --- WEAPON ----------- Small Laser Small Laser > --- INVENTORY -------- Ion Engine Improved Terrain Scanner Medium Laser Medium Laser Small Laser Small Laser Assault Rifle Grenade Launcher [Rating: 8] Favorites ----------- Power Ion Engine Engine Ion Engine Propulsion Aluminum Leg Leg Aluminum Leg Utility Small Storage Unit Device Seismic Detector Storage Small Storage Unit Weapon Small Laser Energy Gun Small Laser Launcher Grenade Launcher Build | -11 -10 -10 -10 ------- Run | Yrd Mat Min Sub Slots Evolved . | . . . . Power . | . . . . Propulsion . | . . . . Utility . | . . . . Weapon . | . . . . Parts Attached 11 | 7 1 1 2 Power 2 | 1 . . 1 Engine 2 | 1 . . 1 Core . | . . . . Reactor . | . . . . Propulsion 2 | 2 . . . Treads . | . . . . Leg 2 | 2 . . . Wheel . | . . . . Hover . | . . . . Flight . | . . . . Utility 2 | 2 . . . Device 1 | 1 . . . Storage 1 | 1 . . . Processor . | . . . . Hackware . | . . . . Protection . | . . . . Artifact . | . . . . Weapon 5 | 2 1 1 1 Energy Gun 4 | 2 . 1 1 Energy Cannon . | . . . . Ballistic Gun . | . . . . Ballistic Cannon . | . . . . Launcher 1 | . 1 . . Special Weapon . | . . . . Impact Weapon . | . . . . Slashing Weapon . | . . . . Piercing Weapon . | . . . . Special Melee Weapon . | . . . . Unidentified Prototypes . | . . . . Parts Lost 1 | . . . 1 Power . | . . . . Propulsion . | . . . . Utility . | . . . . Weapon 1 | . . . 1 Highest Loss Streak 1 | . . . 1 To Critical Strikes . | . . . . Average Backups 5 | 2 4 6 7 Power . | . 1 1 . Propulsion . | . . . . Utility . | . 1 1 1 Weapon 3 | 1 2 4 5 Tool/Special . | . . . . Unused Backups 7 | 1 . . 6 Power . | . . . . Propulsion 3 | 1 . . 2 Utility 1 | . . . 1 Weapon 3 | . . . 3 Tool/Special . | . . . . Average Slot Usage (%) 99 | . 100 100 99 Engine 14 | . 14 14 14 Leg 28 | . 28 28 28 Device 14 | . 14 14 14 Storage 14 | . 14 14 14 Energy Gun 27 | . 28 28 27 Peak Build Rating 8 | 7 7 8 8 Average Rating 6 | 5 7 7 7 On Entrance 5 | . 7 7 7 Avg Prop Armor Cover (%) . | . . . . Naked Turns . | . . . . Heaviest Build 15 | 13 13 13 15 Greatest Support 20 | 20 20 20 20 Greatest Overweight (x) . | . . . . Average Overweight (x) . | . . . . Largest Inventory Capacity 8 | 8 8 8 8 Average Capacity 7 | 7 8 8 8 Most Carried 8 | 5 5 8 8 Average Carried 5 | 2 4 6 7 Final Capacity 8 | 8 8 8 8 Final Carried 7 | 3 5 7 7 Class Distribution -------------------- 100% | Mutant Dominant Class ---------------- Mutant | -10/Materials Mutant | -10/Mines Mutant | -10/Subcaves Resources | -11 -10 -10 -10 ----------- Run | Yrd Mat Min Sub Matter Collected 320 | 270 30 . 20 Remotely . | . . . . Salvage Created 407 | 104 80 46 177 Parts 27 | 9 5 4 9 Haulers Intercepted . | . . . . Recyclers Shooed . | . . . . Parts Field Recycled . | . . . . Retrieved Matter . | . . . . Parts Self-Destructed 7 | . . . 7 Prevented . | . . . . Parts Restored . | . . . . Kills | -11 -10 -10 -10 ------- Run | Yrd Mat Min Sub Combat Hostiles Destroyed 9 | . 2 3 4 Guns 9 | . 2 3 4 Classes Destroyed 5 | 2 1 1 1 Tunneler 2 | 2 . . . Recycler 1 | 1 . . . Swarmer 3 | . . 3 . Grunt 5 | . 2 . 3 Sentry 1 | . . . 1 Best Kill Streak 3 | 2 2 3 2 Combat Bots Only 3 | . 2 3 2 Max Kills in Single Turn 1 | 1 1 1 1 Gunslinging . | . . . . Exploded . | . . . . Melee . | . . . . Uniques/NPCs Destroyed . | . . . . Combat | -11 -10 -10 -10 -------- Run | Yrd Mat Min Sub Hostile Shots Fired 57 | . 16 15 26 Missed 12 | . 5 3 4 Hits 45 | . 11 12 22 Projectile 45 | . 11 12 22 AOE 3 | . . . 3 Damage Taken 715 | . 165 97 453 Core 314 | . 76 40 198 Absorbed by Shields . | . . . . Core Remaining (%) 100 | 100 . . . Volleys Fired 44 | 8 9 7 20 Largest 2 | 2 2 2 2 Hottest 80 | 80 80 80 80 Shots Fired 83 | 16 17 14 36 Gun 80 | 16 16 14 34 Cannon . | . . . . Launcher 3 | . 1 . 2 Special . | . . . . Kinetic . | . . . . Thermal 80 | 16 16 14 34 Explosive 3 | . 1 . 2 Electromagnetic . | . . . . Robot Hit Streak 14 | 5 6 3 14 Robot Miss Streak 4 | 3 4 4 3 Penetration Max . | . . . . Secondary Targets 3 | . . 2 1 Max Gunslinging Chain 1 | . . 1 1 Shots Hit Robots 46 | 8 7 6 25 Core Hits 22 | 4 5 3 10 Critical Kills . | . . . . Critical Parts Destroyed . | . . . . Critical Strikes . | . . . . Melee Attacks . | . . . . Impact . | . . . . Slashing . | . . . . Piercing . | . . . . Sneak Attacks . | . . . . Combat Hostiles . | . . . . Follow-up Attacks . | . . . . Damage Inflicted 558 | 89 102 78 289 Guns 531 | 89 75 78 289 Cannons . | . . . . Explosions 27 | . 27 . . Melee . | . . . . Ramming . | . . . . Kinetic . | . . . . Thermal 531 | 89 75 78 289 Explosive 27 | . 27 . . Electromagnetic . | . . . . Impact . | . . . . Slashing . | . . . . Piercing . | . . . . Highest Corruption . | . . . . Average Corruption . | . . . . Corruption Purged . | . . . . Corruption Blocked . | . . . . Overload Shots . | . . . . Overflow Damage . | . . . . Projectiles . | . . . . Explosions . | . . . . Melee . | . . . . Knockbacks . | . . . . Impact . | . . . . Kinetic . | . . . . Secondary . | . . . . Self-Inflicted Damage 21 | . 21 . . Shots 1 | . 1 . . Rammed . | . . . . Targets Rammed . | . . . . Kicked . | . . . . Crushed . | . . . . Highest Temperature 186 | 90 186 108 1 Average Temperature 62 | 37 93 50 1 Received Heat Transfer 213 | . 66 . 147 Siege Activations . | . . . . Martial Activations . | . . . . Shielding Activations . | . . . . Robots Disrupted . | . . . . Combat Hostiles . | . . . . Robots Corrupted . | . . . . Combat Hostiles . | . . . . Parts Fried . | . . . . Impact Corruptions . | . . . . Robots Melted . | . . . . Combat Hostiles . | . . . . Parts Melted 1 | . . 1 . Heat Transferred 1200 | 200 175 175 650 Parts Sabotaged . | . . . . Parts Stolen . | . . . . Parts Stripped . | . . . . Power Chain Reactions . | . . . . Alert | -11 -10 -10 -10 ------- Run | Yrd Mat Min Sub Maximum Alert Level . | . . . . Low Security (%) 100 | 100 100 100 . Level 1 . | . . . . Level 2 . | . . . . Level 3 . | . . . . Level 4 . | . . . . Level 5 . | . . . . High Security . | . . . . Max Security . | . . . . Peak Influence 70 | 10 30 70 . Initial . | . . . . Average 6 | 1 4 10 . Influence Increases 265 | 15 90 70 90 Destroy 0b10 Robot/C 180 | . 40 60 80 Destroy 0b10 Robot/NC 15 | 15 . . . Destroy Leader 20 | . . 10 10 Successful Hack 11 | . 11 . . Select Force Hacks 30 | . 30 . . Destroy Structure 9 | . 9 . . Influence Decreases 265 | 15 90 70 90 Time Decay 265 | 15 90 70 90 Squads Dispatched 1 | . 1 . . Investigation 1 | . 1 . . Extermination . | . . . . Reinforcement . | . . . . Assault . | . . . . Garrison . | . . . . Intercept . | . . . . Searches Triggered . | . . . . Construction Impeded . | . . . . Haulers Reinforced . | . . . . Active Scanning Responses . | . . . . Cargo Convoy Interrupts . | . . . . Stealth | -11 -10 -10 -10 --------- Run | Yrd Mat Min Sub Distress Signals . | . . . . Communications Jammed . | . . . . Distress Signals . | . . . . Times Spotted 12 | . 4 3 5 Peak Tracking Total 2 | . 2 2 2 Tactical Retreats . | . . . . Traps | -11 -10 -10 -10 ------- Run | Yrd Mat Min Sub Traps Triggered 1 | . 1 . . Indirectly . | . . . . Trap Hack Attempts . | . . . . Triggered . | . . . . Disarmed . | . . . . Reprogrammed . | . . . . Reused . | . . . . Traps Extracted . | . . . . Installed . | . . . . Triggered . | . . . . Machines | -11 -10 -10 -10 ---------- Run | Yrd Mat Min Sub Machines Disabled . | . . . . Max in Single Turn . | . . . . Machines Repaired . | . . . . Machines Dismantled . | . . . . Machines Sabotaged . | . . . . Overloaded Fab Kills . | . . . . Hacking | -11 -10 -10 -10 --------- Run | Yrd Mat Min Sub Machines Accessed 6 | . 6 . . Terminals 5 | . 5 . . Fabricators . | . . . . Repair Stations . | . . . . Recycling Units 1 | . 1 . . Scanalyzers . | . . . . Garrison Access . | . . . . Total Hacks 16 | . 16 . . Successful 11 | . 11 . . Failed 5 | . 5 . . Catastrophic . | . . . . Database Lockouts . | . . . . Manual 15 | . 15 . . Terminals 14 | . 14 . . Fabricators . | . . . . Repair Stations . | . . . . Recycling Units 2 | . 2 . . Scanalyzers . | . . . . Garrison Access . | . . . . Terminal Hacks 1 | . 1 . . Zone Layout 1 | . 1 . . Fabricator Hacks . | . . . . Repair Station Hacks . | . . . . Recycling Unit Hacks 1 | . 1 . . Retrieve Components 1 | . 1 . . Scanalyzer . | . . . . Garrison Access Hacks . | . . . . Unauthorized Hacks 9 | . 9 . . Terminals 8 | . 8 . . Assimilate 2 | . 2 . . Botnet 1 | . 1 . . Skim 5 | . 5 . . Fabricators . | . . . . Repair Stations . | . . . . Recycling Units 1 | . 1 . . Tunnel 1 | . 1 . . Scanalyzers . | . . . . Garrison Access . | . . . . Data Cores Recovered . | . . . . Used . | . . . . Hacking Detections 5 | . 5 . . Full Trace Events . | . . . . Feedback Events . | . . . . Feedback Blocked . | . . . . Robot Schematics Acquired . | . . . . Robots Built . | . . . . Authchips . | . . . . Time . | . . . . Total Robot Build Rating . | . . . . Part Schematics Acquired . | . . . . Parts Built . | . . . . Authchips . | . . . . Time . | . . . . Total Part Build Rating . | . . . . Part Studies Acquired . | . . . . Parts Repaired . | . . . . Time . | . . . . Parts Recycled . | . . . . Recycled Matter . | . . . . Retrieved Matter . | . . . . Retrieved Components 3 | . 3 . . Parts Scanalyzed . | . . . . Part Schematics Acquired . | . . . . Parts Damaged . | . . . . Bothacking | -11 -10 -10 -10 ------------ Run | Yrd Mat Min Sub Used RIF Installer . | . . . . Robots Hacked . | . . . . Non-combat . | . . . . Combat . | . . . . Robot Hacks Applied . | . . . . Relay Couplers Released . | . . . . Fabnet Peak Effective % . | . . . . Robots Rewired . | . . . . Allies Hacked . | . . . . Hacks Repelled . | . . . . Allies | -11 -10 -10 -10 -------- Run | Yrd Mat Min Sub Total Allies 1 | . 1 . . Largest Group 1 | . 1 1 1 Highest-Rated Group 10 | . 10 10 10 Highest-Rated Ally 10 | . 10 10 10 Total Orders . | . . . . Ally Attacks . | . . . . Total Damage . | . . . . Kills . | . . . . Allies Corrupted . | . . . . Allies Melted . | . . . . Intel | -11 -10 -10 -10 ------- Run | Yrd Mat Min Sub Active Infowar (turns) 1683 | 33 556 471 623 Seismic 1683 | 33 556 471 623 Robot Analysis Total . | . . . . Derelict Logs Recovered 2 | . . 2 . Drone Launches . | . . . . Drone Recoveries . | . . . . Exploration | -11 -10 -10 -10 ------------- Run | Yrd Mat Min Sub Turns Passed 1766 | 116 556 471 623 Spaces Moved 1012 | 60 176 330 446 Core 16 | 16 . . . Treads . | . . . . Legs 996 | 44 176 330 446 Wheels . | . . . . Hover . | . . . . Flight . | . . . . Fastest Speed 50 | 50 120 120 120 Average Speed 118 | 101 120 120 120 Slowest Speed 120 | 120 120 120 120 Overloaded Moves . | . . . . Propulsion Burnouts . | . . . . Robots Hopped . | . . . . Potential Cave-ins . | . . . . Cave-ins Triggered . | . . . . Exploration Rate (%) 35 | 4 27 77 32 Regions Visited 3 Branch Regions 2 Pre-discovered Areas 2 | . 1 1 . Known Exits Taken 2 | . 1 1 . Unknown Exits Taken 1 | 1 . . . Scrap Searched 3 | . . 3 . Spaces Dug 14 | . 8 . 6 Terrain Destroyed 20 | . 8 . 12 Melee . | . . . . Projectile . | . . . . AOE 20 | . 8 . 12 Terrain Rammed . | . . . . Walls Destroyed . | . . . . Machines Disabled . | . . . . Actions | -11 -10 -10 -10 --------- Run | Yrd Mat Min Sub Total 1492 | 99 503 391 499 Wait 404 | 13 315 50 26 Move 1009 | 59 175 329 446 Hop . | . . . . Pick Up 18 | 11 2 3 2 Fast Attach . | . . . . Attach 8 | 7 . . 1 Detach . | . . . . Swap 6 | . 2 1 3 Drop 3 | 1 . 1 1 Fire 44 | 8 9 7 20 Melee . | . . . . Ram . | . . . . Kick . | . . . . Crush . | . . . . Escape Stasis . | . . . . Rewire . | . . . . Trap . | . . . . Miscellaneous . | . . . . Route ------- -11/Scrapyard -10/Materials (discovered 5 exits: *Mat x2 / *Min x2 / Sub) -10/Mines (discovered 3 exits: *Mat x2 / *Sub) -10/Subcaves (discovered 2 exits: Mat / [*Scr]) History --------- Turn | Location | Event 7 | -11/Scrapyard | Discovered new exit (range 15) 117 | -11/Scrapyard | Entered Materials 182 | -10/Materials | Discovered new exit (range 12) 234 | -10/Materials | Discovered new exit (range 8) 303 | -10/Materials | Build established: Mutant 329 | -10/Materials | Identified exit to Subcaves 394 | -10/Materials | Learned 4 Subcaves zone layouts 450 | -10/Materials | Learned 4 Subcaves zone layouts 494 | -10/Materials | Learned Storage stockpile data 550 | -10/Materials | Identified exit to Materials 550 | -10/Materials | Identified exit to Mines 580 | -10/Materials | Learned Storage garrison access intel 619 | -10/Materials | Learned Storage security intel 666 | -10/Materials | Learned Storage garrison access intel 673 | -10/Materials | Entered Mines 673 | -10/Mines | Accompanied by 1 ally 1045 | -10/Mines | Learned Materials emergency access door positions 1066 | -10/Mines | Learned location of Storage (-8) 1092 | -10/Mines | Discovered exit to Subcaves (range 5) 1144 | -10/Mines | Entered Subcaves 1144 | -10/Subcaves | Accompanied by 1 ally 1145 | -10/Subcaves | Approached by a straggling Scientist 1145 | -10/Subcaves | Identified exit to Materials 1351 | -10/Subcaves | Shifting Twisted Machinery released Sub. Monowheel 1355 | -10/Subcaves | Shifting Twisted Machinery released Flamer 1415 | -10/Subcaves | Core integrity fell below 50% 1644 | -10/Subcaves | Core integrity fell below 20% 1767 | -10/Subcaves | Destroyed by A4-PTL(R) with Subdweller Shrapnel Launcher Last Messages --------------- 01425_ VG-5WJ(u) tweaks Twisted Machinery. 01435_ G-47 Trooper destroyed. 01439_ Aluminum Leg fries itself beyond repair. 01441_ Imp. Heat Sink fries itself beyond repair. 01449_ Acquired 10 matter. PK-U93(c): "We're getting close, I can feel it." 01472_ PK-U93(c) exits level. 01645_ G-34 Mercenary destroyed. 01648_ Y-45 Defender destroyed. 01655_ Subatomizers dissect the Lgt. Armor Plating. 01655_ Acquired Lgt. Treads. 01658_ Imp. Ion Engine fries itself beyond repair. 01659_ Dropped Ion Engine. 01659_ Acquired Lgt. Treads. 01660_ Acquired 10 matter. 01662_ Lgt. Armor Plating fries itself beyond repair. 01666_ Hvy. Assault Rifle fries itself beyond repair. 01668_ Subatomizers dissect the Ion Engine. 01722_ The unstable cave ceiling collapses. 01758_ Sml. Laser destroyed. Map ----- +----------------------------------------------------+ | ???????????????????????????? # ## # | | ???####?#####??????????????? #### ## | | #### ### ##???###???????? ## # #??### ### | | ##### #???????? #######????## # | | % ###???????######?###?##### # | | % ##### # ### #??????? # ### ### ####### | | ##???# ###?# #????? ### ##?## | | #??### ## ## # # #???? ## ### | | #### #####? ???#### ## ## | | ## > #??????# ?####### ## | | ## ## ##??????? "## ### | | ##??## #???????? ## ## ## | | ##### ## #???????? ## #### | | ### ##?# #???????? "# ## ##??# | | ##?######## #???????? "# #####???# | | #?????# ####????????"""## ######???????# | | ###?### ###????????##### ##????????????# | | ### # #???????????? #?????????????# | | #######????# #?????????????# | | "" # #???## #?????????????# | | #???? #?????????????? | | " ##### ##### #??????????????? | | " #???## ; ;; #???????????????? | | " # ##????# ; #???????????????? | | #"# #????## R #????????????????? | | ##?############??### @ #?????????????????? | | ?????????????????# ;##?????????????????? | | ?????????????????# #??????????????????? | | ?????????????????## ;;#??????????????????? | | ??????????????????# ;##??????????????????? | | ??????????????????# ## #???????????????????? | | ??????????????????# ## #??????????????????? | | ??????????????????### ###?#%#?????????????????? | | ????????????????????# ##?#?? #?????????????????? | | ????????????????????## #??#???#?????????????????? | | ????????????????###?# #?##?????????????????????? | | ????????????????# #### ### ?????????